bitfinex-derivatives/quotes_BTCF0:USTF0_20250718
["timestamp","ask_amount","ask_price","bid_price","bid_amount"]
[1752861436630,0.63095951,117670.0,117660.0,0.9092035]
[1752861436829,0.66281951,117670.0,117660.0,0.9092035]
[1752861437329,0.67545951,117670.0,117660.0,0.9092035]
[1752861437829,0.66281951,117670.0,117660.0,0.9092035]
[1752861440228,0.6416335,117670.0,117660.0,0.9092035]
[1752861440629,0.6542735,117670.0,117660.0,0.9092035]
[1752861440831,0.67547786,117670.0,117660.0,0.9092035]
[1752861441432,0.6542735,117670.0,117660.0,0.9092035]
[1752861442430,1.11298908,117670.0,117660.0,0.9086835]
[1752861443032,1.09178448,117670.0,117660.0,0.9086835]
[1752861446228,0.2120779,117660.0,117650.0,0.3279801]
[1752861446534,1.08879888,117660.0,117650.0,1.0300053]
[1752861447033,1.08879888,117660.0,117650.0,1.106168]
[1752861447332,1.08879888,117660.0,117650.0,1.0300053]
[1752861447532,1.08979888,117660.0,117650.0,1.0300053]
[1752861447734,1.08979888,117660.0,117650.0,0.9450451]
[1752861448035,1.08979888,117660.0,117650.0,1.0212078]
[1752861449034,1.09079888,117660.0,117650.0,1.0212078]
[1752861449535,1.09179888,117660.0,117650.0,1.0212078]
[1752861452535,0.6542879,117660.0,117650.0,1.0212078]
[1752861452736,0.5802579,117660.0,117650.0,0.9450451]
[1752861453338,0.6425679,117660.0,117650.0,0.9450451]
[1752861453538,0.6550379,117660.0,117650.0,0.9450451]
[1752861454942,0.5802579,117660.0,117650.0,0.9450451]
[1752861455336,0.5802579,117660.0,117650.0,1.0212078]
[1752861455532,0.5802579,117660.0,117650.0,1.45871878]
[1752861456844,0.002,117660.0,117650.0,1.45871878]
[1752861457040,0.001,117660.0,117650.0,1.38255608]
[1752861457441,0.001,117660.0,117650.0,1.48962428]
[1752861458843,0.001,117660.0,117650.0,1.85042428]
[1752861461944,0.3608,117670.0,117660.0,0.2916079]
[1752861462142,0.3608,117680.0,117670.0,0.2161735]
[1752861462335,0.3608,117680.0,117670.0,1.41300592]
[1752861463147,0.620404,117690.0,117680.0,0.216159]
[1752861463342,0.620404,117690.0,117680.0,0.291579]
[1752861463547,0.3608,117690.0,117680.0,0.72908998]
[1752861464149,0.6203828,117700.0,117690.0,0.2915646]
[1752861464346,0.6203828,117700.0,117690.0,0.8990446]
[1752861464547,0.5779181,117700.0,117690.0,1.33655558]
[1752861464746,0.5779181,117700.0,117690.0,0.8990446]
[1752861465441,0.6088481,117700.0,117690.0,0.8990446]
[1752861465752,0.6526981,117700.0,117690.0,0.8990446]
[1752861466244,1.09020908,117700.0,117690.0,0.8990446]
[1752861466446,1.09620908,117700.0,117690.0,0.8990446]
[1752861466651,1.09620908,117700.0,117690.0,0.9052162]
[1752861467355,1.09920908,117700.0,117690.0,0.9052162]
[1752861467553,0.6616981,117700.0,117690.0,0.9052162]
[1752861467752,1.09920908,117700.0,117690.0,0.9052162]
[1752861468852,0.6616981,117700.0,117690.0,0.9052162]
[1752861469154,1.09920908,117700.0,117690.0,0.9052162]
[1752861469452,1.09520908,117700.0,117690.0,0.9052162]
[1752861469648,0.6546981,117700.0,117690.0,0.9052162]
[1752861469855,1.09520908,117700.0,117690.0,0.9052162]
[1752861471758,0.5829181,117700.0,117690.0,0.9052162]
[1752861473857,0.6576981,117700.0,117690.0,0.9052162]
[1752861475559,0.6452281,117700.0,117690.0,0.9052162]
[1752861475762,0.5829181,117700.0,117690.0,0.9052162]
[1752861478564,0.5829181,117700.0,117690.0,1.34272718]
[1752861478755,0.3658,117700.0,117690.0,1.34272718]
[1752861480560,0.005,117700.0,117690.0,1.34272718]
[1752861480864,0.005,117700.0,117690.0,1.41906862]
[1752861481063,0.005,117700.0,117690.0,1.34272718]
[1752861482260,0.3608,117710.0,117700.0,0.1698502]
[1752861482461,0.3608,117710.0,117700.0,0.2880302]
[1752861482765,0.3608,117720.0,117710.0,0.2880158]
[1752861482960,0.5306214,117720.0,117710.0,0.8948558]
[1752861483161,0.3608,117720.0,117710.0,0.8948558]
[1752861483360,0.3608,117720.0,117710.0,1.33236678]
[1752861483565,0.5306214,117720.0,117710.0,1.33236678]
[1752861483960,0.5306214,117720.0,117710.0,0.72498]
[1752861483961,0.5761914,117720.0,117710.0,0.72498]
[1752861484163,0.6472214,117720.0,117710.0,0.8948158]
[1752861484368,1.08873238,117720.0,117710.0,0.8948158]
[1752861484874,1.09273238,117720.0,117710.0,0.66688]
[1752861485480,1.09273238,117720.0,117710.0,0.6068]
[1752861485669,0.2572858,117710.0,117700.0,0.2880293]
[1752861485974,0.6472358,117710.0,117700.0,0.8947893]
[1752861486577,1.08474678,117710.0,117700.0,0.8947893]
[1752861486966,1.08674678,117710.0,117700.0,0.8947893]
[1752861488077,0.6492358,117710.0,117700.0,0.8947893]
[1752861488278,1.08674678,117710.0,117700.0,0.8947893]
[1752861495385,1.08674678,117710.0,117700.0,0.8946693]
[1752861496891,0.6492358,117710.0,117700.0,0.8946693]
[1752861497186,1.08674678,117710.0,117700.0,0.8946693]
[1752861500281,0.6492358,117710.0,117700.0,0.8946693]
[1752861500790,1.08674678,117710.0,117700.0,0.8946693]
[1752861500987,0.36851,117710.0,117700.0,1.33218028]
[1752861501188,0.3628,117710.0,117700.0,1.33218028]
[1752861501385,0.3628,117710.0,117700.0,1.40852172]
[1752861503493,0.3628,117710.0,117700.0,0.97101074]
[1752861503693,0.5326358,117710.0,117700.0,0.97101074]
[1752861503891,0.5326358,117710.0,117700.0,1.40852172]
[1752861504496,0.5326358,117710.0,117700.0,0.97101074]
[1752861504691,0.5326358,117710.0,117700.0,1.40852172]
[1752861505696,0.5326358,117710.0,117700.0,0.97101074]
[1752861505992,0.5326358,117710.0,117700.0,1.40852172]
[1752861507693,0.3628,117710.0,117700.0,1.40852172]
[1752861508092,0.3628,117710.0,117700.0,0.97101074]
[1752861508694,0.3628,117710.0,117700.0,1.40852172]
[1752861510990,0.3628,117710.0,117700.0,1.33218028]
[1752861511290,0.5589257,117710.0,117700.0,0.72554028]
[1752861511594,0.5589257,117710.0,117700.0,0.80084144]
[1752861511595,1.08653668,117710.0,117700.0,0.80084144]
[1752861511794,1.08653668,117710.0,117700.0,0.78863144]
[1752861511987,1.08653668,117710.0,117700.0,0.18231144]
[1752861512389,1.08653668,117710.0,117700.0,0.15639144]
[1752861512696,1.08653668,117710.0,117700.0,0.32624164]
[1752861513096,1.08653668,117710.0,117700.0,0.35130164]
[1752861513299,1.08653668,117710.0,117700.0,0.36301164]
[1752861517196,1.08653668,117710.0,117700.0,0.2866702]
[1752861517496,1.08653668,117710.0,117700.0,0.2499002]
[1752861517691,1.08653668,117710.0,117700.0,0.1698502]
[1752861518194,1.08653668,117710.0,117700.0,0.2283002]
[1752861518595,1.08653668,117710.0,117700.0,0.30464164]
[1752861519396,1.08653668,117710.0,117700.0,0.31635164]
[1752861519895,1.08653668,117710.0,117700.0,0.2400102]
[1752861520096,1.08653668,117710.0,117700.0,0.31635164]
[1752861520296,1.08653668,117710.0,117700.0,0.2400102]
[1752861520890,1.08653668,117710.0,117700.0,0.07016]
[1752861521197,0.2862402,117700.0,117690.0,0.05845]
[1752861521398,1.80071118,117700.0,117690.0,0.07634144]
[1752861521590,0.2862546,117690.0,117680.0,0.19227144]
[1752861521792,1.08456558,117690.0,117680.0,0.2858091]
[1752861521999,0.2165691,117680.0,117670.0,0.19227144]
[1752861522199,1.69070008,117680.0,117670.0,0.11593]
[1752861522501,1.69070008,117680.0,117670.0,0.1862282]
[1752861522701,1.69070008,117680.0,117670.0,0.05845]
[1752861523089,1.69070008,117680.0,117670.0,0.2283435]
[1752861523300,1.69070008,117680.0,117670.0,0.30465459]
[1752861523994,1.69270008,117680.0,117670.0,0.33707459]
[1752861524595,1.69270008,117680.0,117670.0,0.13476109]
[1752861525196,1.69270008,117680.0,117670.0,0.05845]
[1752861526295,1.69370008,117680.0,117670.0,0.05845]
[1752861527201,1.69370008,117680.0,117670.0,0.2283435]
[1752861527503,1.69370008,117680.0,117670.0,0.2490535]
[1752861527796,1.69370008,117680.0,117670.0,0.2858235]
[1752861534304,1.2560291,117680.0,117670.0,0.2858235]
[1752861534508,1.63499008,117680.0,117670.0,0.2858235]
[1752861534707,1.2559891,117680.0,117670.0,0.2858235]
[1752861535501,1.69350008,117680.0,117670.0,0.2858235]
[1752861536304,1.2559891,117680.0,117670.0,0.2858235]
[1752861536505,1.69350008,117680.0,117670.0,0.2858235]
[1752861537601,1.2559891,117680.0,117670.0,0.21819251]
[1752861537905,1.08758008,117680.0,117670.0,0.21819251]
[1752861539303,1.08558008,117680.0,117670.0,0.21819251]
[1752861539805,1.08558008,117680.0,117670.0,0.27664251]
[1752861541807,0.6480691,117680.0,117670.0,0.27664251]
[1752861544012,1.08558008,117680.0,117670.0,0.27664251]
[1752861544705,0.6480691,117680.0,117670.0,0.27664251]
[1752861545501,1.08587008,117680.0,117670.0,0.19898251]
[1752861545705,1.08587008,117680.0,117670.0,0.16071251]
[1752861546308,1.08587008,117680.0,117670.0,0.27619251]
[1752861546711,0.6483591,117680.0,117670.0,0.27619251]
[1752861546904,1.2540791,117680.0,117670.0,0.27619251]
[1752861548102,0.47848,117680.0,117670.0,0.71370349]
[1752861548302,0.6483591,117680.0,117670.0,0.71370349]
[1752861549410,0.6483591,117680.0,117670.0,0.27619251]
[1752861550213,0.6483591,117680.0,117670.0,0.3525036]
[1752861551212,0.6483591,117680.0,117670.0,0.27619251]
[1752861553413,0.6483591,117680.0,117670.0,0.3525036]
[1752861553715,0.467,117680.0,117670.0,0.79001458]
[1752861554312,0.636879,117680.0,117670.0,1.39561458]
[1752861554514,0.3618,117680.0,117670.0,1.39561458]
[1752861555117,0.43969,117680.0,117670.0,1.39561458]
[1752861555313,0.46002,117680.0,117670.0,1.39561458]
[1752861557212,0.45902,117680.0,117670.0,1.39561458]
[1752861557917,0.45902,117680.0,117670.0,1.39661458]
[1752861558820,0.6349289,117680.0,117670.0,0.88279251]
[1752861559119,0.6349289,117680.0,117670.0,1.32030349]
[1752861559320,0.6464089,117680.0,117670.0,1.32030349]
[1752861559922,1.08391988,117680.0,117670.0,0.85270251]
[1752861560523,1.08391988,117680.0,117670.0,0.88279251]
[1752861562525,0.6464089,117680.0,117670.0,0.88279251]
[1752861564826,0.6145989,117680.0,117670.0,0.88279251]
[1752861565127,0.6349289,117680.0,117670.0,1.32030349]
[1752861566127,0.6349289,117680.0,117670.0,0.88279251]
[1752861566423,0.6349289,117680.0,117670.0,1.32030349]
[1752861566617,0.5987989,117680.0,117670.0,1.32030349]
[1752861566816,0.5987989,117680.0,117670.0,1.39661458]
[1752861567020,0.42892,117680.0,117670.0,1.39661458]
[1752861567420,0.45902,117680.0,117670.0,1.39661458]
[1752861567828,0.46505,117680.0,117670.0,1.39661458]
[1752861568127,0.6349291,117680.0,117670.0,1.39661458]
[1752861570431,0.6464091,117680.0,117670.0,1.39661458]
[1752861571229,0.6464091,117680.0,117670.0,1.39613458]
[1752861571428,0.6464091,117680.0,117670.0,1.31982349]
[1752861573132,0.6464091,117680.0,117670.0,0.88231251]
[1752861573328,0.6464091,117680.0,117670.0,1.31982349]
[1752861577430,0.47653,117680.0,117670.0,1.31982349]
[1752861577836,0.6464091,117680.0,117670.0,1.31982349]
[1752861578534,0.6464091,117680.0,117670.0,1.39613458]
[1752861578733,0.6464091,117680.0,117670.0,0.3535036]
[1752861579037,1.08392008,117680.0,117670.0,0.8687936]
[1752861579336,1.08392008,117680.0,117670.0,0.79248251]
[1752861579532,1.08392008,117680.0,117670.0,0.001]
[1752861579729,1.68876008,117680.0,117670.0,0.1708935]
[1752861579925,1.68876008,117680.0,117670.0,0.1698935]
[1752861580125,1.68976008,117680.0,117670.0,0.1698935]
[1752861580330,0.2149935,117670.0,117660.0,1.05672521]
[1752861580529,1.08420448,117670.0,117660.0,0.45425851]
[1752861580735,1.08420448,117670.0,117660.0,0.33116129]
[1752861581332,0.175988,117660.0,117650.0,0.40276787]
[1752861581536,0.175988,117660.0,117650.0,0.33118729]
[1752861581537,1.67766898,117660.0,117650.0,0.33118729]
[1752861581738,1.68901898,117660.0,117650.0,0.33118729]
[1752861582240,1.68901898,117660.0,117650.0,0.34220729]
[1752861582636,1.68901898,117660.0,117650.0,0.2963962]
[1752861583140,1.68901898,117660.0,117650.0,0.2973962]
[1752861583339,1.68901898,117660.0,117650.0,0.30429476]
[1752861583741,1.251508,117660.0,117650.0,0.30429476]
[1752861583941,1.68901898,117660.0,117650.0,0.30429476]
[1752861584137,1.68901898,117660.0,117650.0,0.2973962]
[1752861584441,1.68901898,117660.0,117650.0,0.224416]
[1752861584641,1.68901898,117660.0,117650.0,0.1709158]
[1752861584842,1.68901898,117660.0,117650.0,0.001]
[1752861590242,1.251508,117660.0,117650.0,0.001]
[1752861590443,1.68901898,117660.0,117650.0,0.11731]
[1752861591240,1.251508,117660.0,117650.0,0.11731]
[1752861591439,1.68901898,117660.0,117650.0,0.11731]
[1752861592340,1.68901898,117660.0,117650.0,0.2872324]
[1752861593043,1.32821898,117660.0,117650.0,0.2872324]
[1752861593343,1.87991098,117660.0,117650.0,0.11731]
[1752861595144,1.4424,117660.0,117650.0,0.11731]
[1752861595446,0.8376,117660.0,117650.0,0.11731]
[1752861595645,1.44196,117660.0,117650.0,0.11731]
[1752861596044,1.87947098,117660.0,117650.0,0.11731]
[1752861597945,1.44196,117660.0,117650.0,0.11731]
[1752861598141,1.87947098,117660.0,117650.0,0.11731]
[1752861599950,1.27511098,117660.0,117650.0,0.11731]
[1752861600146,0.8376,117660.0,117650.0,0.11731]
[1752861600339,0.8376,117660.0,117650.0,0.55482098]
[1752861600545,0.3608,117660.0,117650.0,0.55482098]
[1752861600946,0.3608,117660.0,117650.0,0.63113207]
[1752861601347,0.82551,117660.0,117650.0,0.19362109]
[1752861601548,0.83733,117660.0,117650.0,0.79782109]
[1752861601849,0.83733,117660.0,117650.0,0.72151]
[1752861602648,1.27484098,117660.0,117650.0,0.11731]
[1752861602951,1.27484098,117660.0,117650.0,0.79774109]
[1752861603553,0.83733,117660.0,117650.0,0.79774109]
[1752861606745,0.83733,117660.0,117650.0,0.79674109]
[1752861606951,0.83733,117660.0,117650.0,0.79774109]
[1752861609657,0.83733,117660.0,117650.0,0.13318109]
[1752861609856,1.27484098,117660.0,117650.0,0.71659]
[1752861610859,0.83733,117660.0,117650.0,0.71559]
[1752861611352,0.82651,117660.0,117650.0,1.22941207]
[1752861611560,0.7226,117660.0,117650.0,1.22941207]
[1752861611758,0.78137,117660.0,117650.0,1.22941207]
[1752861611958,0.82603,117660.0,117650.0,1.22941207]
[1752861612663,0.83785,117660.0,117650.0,0.79190109]
[1752861613160,0.83685,117660.0,117650.0,0.79290109]
[1752861613758,0.83685,117660.0,117650.0,1.23041207]
[1752861614061,0.83685,117660.0,117650.0,1.22941207]
[1752861614359,0.83685,117660.0,117650.0,0.79290109]
[1752861614560,0.83685,117660.0,117650.0,1.23041207]
[1752861614959,0.83685,117660.0,117650.0,1.17461207]
[1752861615464,0.83685,117660.0,117650.0,0.76097109]
[1752861616352,0.83685,117660.0,117650.0,0.15709109]
[1752861616560,1.27436098,117660.0,117650.0,0.69935109]
[1752861616860,1.27436098,117660.0,117650.0,0.68095109]
[1752861617454,0.83685,117660.0,117650.0,0.68095109]
[1752861619357,0.83785,117660.0,117650.0,0.67995109]
[1752861620667,1.27536098,117660.0,117650.0,0.67995109]
[1752861622267,1.27536098,117660.0,117650.0,0.60364]
[1752861622765,0.83785,117660.0,117650.0,0.62204]
[1752861623065,0.83785,117660.0,117650.0,0.64621]
[1752861623559,0.83785,117660.0,117650.0,0.71297]
[1752861624866,0.83785,117660.0,117650.0,1.15048098]
[1752861625266,0.83785,117660.0,117650.0,0.71297]
[1752861626571,0.83785,117660.0,117650.0,1.15048098]
[1752861626871,0.83785,117660.0,117650.0,0.71297]
[1752861627067,0.83785,117660.0,117650.0,0.78928109]
[1752861628967,0.83785,117660.0,117650.0,0.75036109]
[1752861630168,0.83785,117660.0,117650.0,0.72252109]
[1752861630770,1.27536098,117660.0,117650.0,0.71705109]
[1752861631166,1.37536098,117660.0,117650.0,0.71705109]
[1752861631370,0.93785,117660.0,117650.0,0.71705109]
[1752861633173,0.93785,117660.0,117650.0,0.72265109]
[1752861634075,0.93785,117660.0,117650.0,0.64634]
[1752861635968,0.83785,117660.0,117650.0,0.67397]
[1752861636170,0.83785,117660.0,117650.0,0.70132]
[1752861636778,0.83785,117660.0,117650.0,1.15076098]
[1752861637272,0.83785,117660.0,117650.0,0.71325]
[1752861637575,0.83785,117660.0,117650.0,1.15076098]
[1752861637875,0.83785,117660.0,117650.0,0.71325]
[1752861638076,0.83785,117660.0,117650.0,1.15076098]
[1752861639876,0.83785,117660.0,117650.0,0.71325]
[1752861640779,0.83741,117660.0,117650.0,1.15076098]
[1752861642174,0.83741,117660.0,117650.0,0.10961]
[1752861642380,0.83741,117660.0,117650.0,0.67903109]
[1752861642381,1.27492098,117660.0,117650.0,0.67903109]
[1752861643074,1.27492098,117660.0,117650.0,0.69836109]
[1752861643279,0.83741,117660.0,117650.0,0.77776109]
[1752861643480,0.83741,117660.0,117650.0,1.22720207]
[1752861644783,0.83741,117660.0,117650.0,0.78969109]
[1752861645680,1.40492098,117660.0,117650.0,0.72270109]
[1752861646285,1.40492098,117660.0,117650.0,0.89262329]
[1752861646781,0.96741,117660.0,117650.0,0.89262329]
[1752861646982,1.1373178,117660.0,117650.0,0.89262329]
[1752861647483,0.96741,117660.0,117650.0,0.89262329]
[1752861648284,1.1373183,117660.0,117650.0,0.89262329]
[1752861648585,0.96741,117660.0,117650.0,0.89262329]
[1752861649986,1.1373183,117660.0,117650.0,0.89262329]
[1752861650186,0.96741,117660.0,117650.0,0.89262329]
[1752861650386,1.1373183,117660.0,117650.0,0.88686329]
[1752861650685,1.1373183,117660.0,117650.0,0.8105522]
[1752861650885,1.57482928,117660.0,117650.0,0.8105522]
[1752861653487,1.57482928,117660.0,117650.0,0.1699222]
[1752861653888,0.2824027,117650.0,117640.0,0.07631109]
[1752861654088,1.81303368,117650.0,117640.0,0.24624829]
[1752861654286,1.81303368,117650.0,117640.0,0.1699372]
[1752861655387,1.81303368,117650.0,117640.0,0.1709372]
[1752861658196,1.3755227,117650.0,117640.0,0.1709372]
[1752861658392,1.81303368,117650.0,117640.0,0.1709372]
[1752861659095,0.2824316,117630.0,117620.0,0.30909344]
[1752861659399,2.17374258,117630.0,117620.0,0.3018898]
[1752861659592,2.17374258,117630.0,117620.0,0.2549298]
[1752861659791,2.17374258,117630.0,117620.0,0.2124396]
[1752861660297,2.17374258,117630.0,117620.0,0.2144396]
[1752861661300,2.17374258,117630.0,117620.0,0.2184396]
[1752861662902,2.19269988,117630.0,117620.0,0.006]
[1752861663107,2.19269988,117630.0,117620.0,0.175966]
[1752861663600,0.1699805,117610.0,117600.0,0.00745004]
[1752861663902,2.10145148,117610.0,117600.0,0.2378049]
[1752861664897,2.10445148,117610.0,117600.0,0.2378049]
[1752861666205,2.10445148,117610.0,117600.0,0.2408049]
[1752861666699,2.10445148,117610.0,117600.0,0.003]
[1752861666905,0.169995,117600.0,117590.0,0.2394029]
[1752861667205,1.13850598,117600.0,117590.0,0.2378107]
[1752861667404,0.700995,117600.0,117590.0,0.2378107]
[1752861667605,1.13850598,117600.0,117590.0,0.2378107]
[1752861668009,0.700995,117600.0,117590.0,0.2378107]
[1752861668198,1.13850598,117600.0,117590.0,0.2378107]
[1752861668400,1.14450598,117600.0,117590.0,0.2629207]
[1752861668609,1.21422705,117600.0,117590.0,0.2820707]
[1752861669504,0.77671607,117600.0,117590.0,0.2820707]
[1752861669707,1.08622705,117600.0,117590.0,0.2820707]
[1752861670410,0.64871607,117600.0,117590.0,0.2820707]
[1752861672312,1.08622705,117600.0,117590.0,0.2820707]
[1752861673705,1.08622705,117600.0,117590.0,0.71958168]
[1752861673706,0.3688,117600.0,117590.0,0.71958168]
[1752861674011,0.3688,117600.0,117590.0,0.88965368]
[1752861674612,0.008,117600.0,117590.0,0.88965368]
[1752861674812,0.3688,117600.0,117590.0,0.88965368]
[1752861675204,0.3873,117600.0,117590.0,1.49161368]
[1752861675714,0.3873,117600.0,117590.0,1.32154168]
[1752861675912,0.557295,117600.0,117590.0,1.32154168]
[1752861676107,0.3873,117600.0,117590.0,1.32154168]
[1752861676914,0.3873,117600.0,117590.0,0.8840307]
[1752861677115,0.3873,117600.0,117590.0,1.32154168]
[1752861677316,0.557295,117600.0,117590.0,1.32146168]
[1752861678117,0.3873,117600.0,117590.0,1.32146168]
[1752861678517,0.5572949,117600.0,117590.0,1.32146168]
[1752861678718,0.5572949,117600.0,117590.0,0.8839507]
[1752861679111,1.01650588,117600.0,117590.0,0.2820707]
[1752861679812,1.01650588,117600.0,117590.0,0.2629207]
[1752861680019,1.01650588,117600.0,117590.0,0.2388107]
[1752861680221,1.13650588,117600.0,117590.0,0.2388107]
[1752861680719,1.13650588,117600.0,117590.0,0.2629207]
[1752861681219,1.13650588,117600.0,117590.0,0.2388107]
[1752861686014,1.13650588,117600.0,117590.0,0.2574207]
[1752861686218,1.13650588,117600.0,117590.0,0.2629207]
[1752861687316,1.13650588,117600.0,117590.0,0.2820707]
[1752861690929,1.13819588,117600.0,117590.0,0.2820707]
[1752861692330,1.13771588,117600.0,117590.0,0.2820707]
[1752861692525,0.7009749,117600.0,117590.0,0.2820707]
[1752861692722,1.13727588,117600.0,117590.0,0.2820707]
[1752861693128,1.15923591,117600.0,117590.0,0.2820707]
[1752861693431,1.15924435,117600.0,117590.0,0.2820707]
[1752861693629,1.16045435,117600.0,117590.0,0.2820707]
[1752861695130,1.16093435,117600.0,117590.0,0.2820707]
[1752861695630,1.15924435,117600.0,117590.0,0.2820707]
[1752861696127,0.72367337,117600.0,117590.0,0.2820707]
[1752861696431,1.01341847,117600.0,117590.0,0.71958168]
[1752861697236,1.18341367,117600.0,117590.0,0.2820707]
[1752861697536,1.20632367,117600.0,117590.0,0.2820707]
[1752861698729,1.1843552,117600.0,117590.0,0.2820707]
[1752861699830,1.62186618,117600.0,117590.0,0.2820707]
[1752861700836,0.97016,117600.0,117590.0,0.71958168]
[1752861701035,0.3688,117600.0,117590.0,0.71958168]
[1752861701429,0.3688,117600.0,117590.0,1.49097368]
[1752861702532,0.3608,117610.0,117600.0,0.2854152]
[1752861702733,0.3608,117610.0,117600.0,0.72292618]
[1752861702929,0.38019,117620.0,117610.0,0.2140907]
[1752861703240,0.76661,117620.0,117610.0,0.8866807]
[1752861703743,1.37529728,117620.0,117610.0,0.2854007]
[1752861704640,1.37708728,117620.0,117610.0,0.2854007]
[1752861705046,1.38108728,117620.0,117610.0,0.2854007]
[1752861705448,1.37708728,117620.0,117610.0,0.2854007]
[1752861705649,1.37808728,117620.0,117610.0,0.2854007]
[1752861705841,0.9405763,117620.0,117610.0,0.2854007]
[1752861706442,0.77061,117620.0,117610.0,0.2854007]
[1752861706747,0.76761,117620.0,117610.0,0.2854007]
[1752861706947,0.76861,117620.0,117610.0,0.2854007]
[1752861707147,0.9385763,117620.0,117610.0,0.2854007]
[1752861707646,0.76861,117620.0,117610.0,0.2854007]
[1752861708548,0.76861,117620.0,117610.0,0.8865207]
[1752861709743,0.72631,117620.0,117610.0,1.32403168]
[1752861709950,0.7236,117620.0,117610.0,1.32403168]
[1752861710340,0.3628,117620.0,117610.0,1.32403168]
[1752861711950,0.3628,117620.0,117610.0,1.39333772]
[1752861713248,0.38219,117620.0,117610.0,1.39333772]
[1752861713453,0.38413,117620.0,117610.0,1.39333772]
[1752861713649,0.38413,117620.0,117610.0,1.03198642]
[1752861713854,0.3849,117620.0,117610.0,1.4694974]
[1752861714057,0.3849,117620.0,117610.0,1.39313772]
[1752861714752,0.3628,117620.0,117610.0,1.4694974]
[1752861715450,0.3834,117620.0,117610.0,0.79221772]
[1752861715754,0.40564,117620.0,117610.0,0.95558674]
[1752861716454,0.3834,117620.0,117610.0,0.95558674]
[1752861716655,0.3834,117620.0,117610.0,1.39309772]
[1752861716845,0.3628,117620.0,117610.0,1.39309772]
[1752861718853,0.3628,117620.0,117610.0,0.95558674]
[1752861719058,0.3834,117620.0,117610.0,1.39309772]
[1752861719349,0.3834,117620.0,117610.0,0.72291168]
[1752861719556,0.40564,117620.0,117610.0,0.2854007]
[1752861719859,0.40564,117620.0,117610.0,0.8861207]
[1752861720550,0.40564,117620.0,117610.0,1.32363168]
[1752861720753,0.5756071,117620.0,117610.0,0.8861207]
[1752861721158,1.01311808,117620.0,117610.0,0.8861207]
[1752861721358,1.01341808,117620.0,117610.0,0.2854007]
[1752861721563,0.40564,117620.0,117610.0,0.72424168]
[1752861721858,0.3628,117620.0,117610.0,1.32492168]
[1752861722250,0.3608,117630.0,117620.0,0.2152071]
[1752861722456,0.3608,117640.0,117630.0,0.1955026]
[1752861722658,0.3608,117640.0,117630.0,1.32107358]
[1752861723060,0.37976,117640.0,117630.0,0.8835626]
[1752861724261,0.37976,117640.0,117630.0,1.32107358]
[1752861724561,0.5496982,117640.0,117630.0,1.32207358]
[1752861724862,0.37976,117640.0,117630.0,0.8845626]
[1752861725059,0.5496982,117640.0,117630.0,0.89205809]
[1752861725260,0.37976,117640.0,117630.0,0.89205809]
[1752861725454,0.38076,117640.0,117630.0,0.89205809]
[1752861725962,1.01062918,117640.0,117630.0,0.8845626]
[1752861726462,1.12062918,117640.0,117630.0,0.8845626]
[1752861727065,1.12062918,117640.0,117630.0,0.8393226]
[1752861727258,1.12062918,117640.0,117630.0,0.8000226]
[1752861727460,1.72118918,117640.0,117630.0,0.1993826]
[1752861727761,2.16646354,117640.0,117630.0,0.1993827]
[1752861727957,2.16646354,117640.0,117630.0,0.1709527]
[1752861728359,1.72118918,117640.0,117630.0,0.2272927]
[1752861728556,1.72118918,117640.0,117630.0,0.2386827]
[1752861728764,1.72114918,117640.0,117630.0,0.2642327]
[1752861728957,1.72114918,117640.0,117630.0,0.2839227]
[1752861729365,1.2836382,117640.0,117630.0,0.2839227]
[1752861729566,1.72102918,117640.0,117630.0,0.2839227]
[1752861729765,1.2831782,117640.0,117630.0,0.72143368]
[1752861729965,1.2831782,117640.0,117630.0,0.2839227]
[1752861730467,0.98124,117640.0,117630.0,0.2839227]
[1752861730668,0.38076,117640.0,117630.0,0.2839227]
[1752861732468,0.5506982,117640.0,117630.0,0.2839227]
[1752861732869,1.01020918,117640.0,117630.0,0.2839227]
[1752861733266,0.6829982,117640.0,117630.0,0.2839227]
[1752861733467,1.12050918,117640.0,117630.0,0.2839227]
[1752861733668,0.6829982,117640.0,117630.0,0.2839227]
[1752861734069,1.12020918,117640.0,117630.0,0.2839227]
[1752861738471,1.12050918,117640.0,117630.0,0.2839227]
[1752861741475,1.12062918,117640.0,117630.0,0.2642327]
[1752861741675,0.6831182,117640.0,117630.0,0.2642327]
[1752861741974,1.12062918,117640.0,117630.0,0.2642327]
[1752861744177,0.6831182,117640.0,117630.0,0.2642327]
[1752861744378,1.12062918,117640.0,117630.0,0.2642327]
[1752861744572,1.12062918,117640.0,117630.0,0.2839227]
[1752861750080,1.12062918,117640.0,117630.0,0.2386827]
[1752861750984,1.74216172,117640.0,117630.0,0.2386827]
[1752861752879,1.76135108,117640.0,117630.0,0.2386827]
[1752861753480,1.76135108,117640.0,117630.0,0.1993827]
[1752861754780,1.76135108,117640.0,117630.0,0.2404327]
[1752861757079,1.3238401,117640.0,117630.0,0.2404327]
[1752861757381,1.76135108,117640.0,117630.0,0.2404327]
[1752861757582,1.73989854,117640.0,117630.0,0.2404327]
[1752861759483,1.72070918,117640.0,117630.0,0.2404327]
[1752861761201,1.74216084,117640.0,117630.0,0.2404327]
[1752861762587,1.74216084,117640.0,117630.0,0.2592527]
[1752861764889,2.10296084,117640.0,117630.0,0.2592527]
[1752861765285,2.08150918,117640.0,117630.0,0.2592527]
[1752861766585,0.7226,117640.0,117630.0,1.32054368]
[1752861766790,0.7226,117640.0,117630.0,1.49055968]
[1752861767091,0.3608,117650.0,117640.0,0.3245206]
[1752861767391,0.3608,117650.0,117640.0,0.76203158]
[1752861767782,0.3608,117650.0,117640.0,0.8384885]
[1752861768579,0.3618,117650.0,117640.0,0.8384885]
[1752861768983,0.3618,117650.0,117640.0,0.40097752]
[1752861769187,0.38288,117650.0,117640.0,1.00065752]
[1752861769388,0.38288,117650.0,117640.0,1.4381685]
[1752861769595,0.3618,117650.0,117640.0,1.4381685]
[1752861769788,0.3608,117650.0,117640.0,1.4381685]
[1752861769989,0.3608,117650.0,117640.0,1.4391685]
[1752861770190,0.3608,117650.0,117640.0,1.4411685]
[1752861774091,0.3608,117650.0,117640.0,1.00365752]
[1752861774296,0.3608,117650.0,117640.0,1.4411685]
[1752861774694,0.38047,117650.0,117640.0,1.00365752]
[1752861774898,0.38148,117650.0,117640.0,1.4411685]
[1752861775397,0.3608,117650.0,117640.0,1.4411685]
[1752861777194,0.3608,117650.0,117640.0,0.76503158]
[1752861777401,0.3608,117650.0,117640.0,1.36455158]
[1752861778602,0.3608,117650.0,117640.0,1.36451158]
[1752861780000,0.3608,117650.0,117640.0,1.80202256]
[1752861780205,0.3608,117650.0,117640.0,1.4409685]
[1752861783204,0.3608,117650.0,117640.0,0.9270006]
[1752861783503,0.3608,117650.0,117640.0,1.36451158]